lending/lending_fUSD_20260411
["ID","MTS","AMOUNT","RATE_DAILY","PERIOD"]
[420263736,1775873448864,-245.45528699,0.00013699,2]
[420263737,1775873448873,-501.39319325,0.00013699,2]
[420263738,1775873448883,-500.28965372,0.00013699,2]
[420263739,1775873448896,-500.0,0.00013699,2]
[420263740,1775873448909,-505.13138564,0.00013699,2]
[420263741,1775873448918,-502.285053,0.00013699,2]
[420263742,1775873448929,-164.53,0.00013699,2]
[420263743,1775873448943,-500.0,0.00013699,2]
[420263744,1775873448953,-500.0,0.00013699,2]
[420263745,1775873448963,-500.0,0.00013699,2]
[420263746,1775873448973,-500.0,0.00013699,2]
[420263747,1775873448989,-500.0,0.00013699,2]
[420263748,1775873448998,-500.0,0.00013699,2]
[420263749,1775873449008,-500.0,0.00013699,2]
[420263750,1775873449019,-500.0,0.00013699,2]
[420263751,1775873449052,-500.0,0.00013699,2]
[420263752,1775873449063,-500.0,0.00013699,2]
[420263753,1775873449097,-500.0,0.00013699,2]
[420263754,1775873449108,-500.0,0.00013699,2]
[420263755,1775873449140,-500.0,0.00013699,2]
[420263756,1775873449151,-500.0,0.00013699,2]
[420263757,1775873449161,-500.0,0.00013699,2]
[420263758,1775873449183,-500.0,0.00013699,2]
[420263759,1775873449192,-500.0,0.00013699,2]
[420263760,1775873449202,-500.0,0.00013699,2]
[420263761,1775873449214,-500.0,0.00013699,2]
[420263762,1775873449230,-500.0,0.00013699,2]
[420263763,1775873449245,-500.0,0.00013699,2]
[420263764,1775873449261,-500.0,0.00013699,2]
[420263765,1775873449271,-500.0,0.00013699,2]
[420263766,1775873449285,-500.0,0.00013699,2]
[420263767,1775873449302,-500.0,0.00013699,2]
[420263768,1775873449312,-276.69130751,0.00013699,2]
[420263769,1775873449633,-223.30869249,0.00013699,2]
[420263770,1775873449646,-159.33663156,0.00013699,2]
[420263771,1775873449657,-417.35474292,0.00013699,2]
[420263772,1775873449673,-82.64525708,0.00013699,2]
[420263773,1775873449683,-500.0,0.00013699,2]
[420263774,1775873449696,-500.0,0.00013699,2]
[420263775,1775873449712,-500.0,0.00013699,2]
[420263776,1775873449721,-500.0,0.00013699,2]
[420263777,1775873449741,-500.0,0.00013699,2]
[420263778,1775873449751,-500.0,0.00013699,2]
[420263779,1775873449765,-500.0,0.00013699,2]
[420263780,1775873449782,-500.0,0.00013699,2]
[420263781,1775873449793,-500.0,0.00013699,2]
[420263782,1775873449805,-500.0,0.00013699,2]
[420263783,1775873449823,-500.0,0.00013699,2]
[420263784,1775873449837,-500.0,0.00013699,2]
[420263785,1775873449851,-500.0,0.00013699,2]
[420263786,1775873449868,-500.0,0.00013699,2]
[420263787,1775873449886,-500.0,0.00013699,2]
[420263788,1775873449895,-500.0,0.00013699,2]
[420263789,1775873449907,-500.0,0.00013699,2]
[420263790,1775873449919,-500.0,0.00013699,2]
[420263791,1775873449928,-225.35994044,0.00013699,2]
[420263792,1775873457575,5000.01,0.000104,5]
[420263793,1775873457599,532.99,0.000104,5]
[420263794,1775873457812,1415.0,0.000102,3]
[420263795,1775873467227,1353.0,0.00010491,2]
[420263796,1775873468891,8647.01,7.945e-05,2]
[420263797,1775873468929,10000.01,7.945e-05,2]
[420263798,1775873468962,2107.115804,7.945e-05,2]
[420263799,1775873474787,162.0,0.00010491,2]
[420263800,1775873587262,1285.0,0.00010491,2]
[420263801,1775873646848,1221.0,0.00010491,2]
[420263803,1775873714111,155.0,0.00010491,2]
[420263804,1775873717879,1160.0,0.00010491,2]
[420263805,1775873824582,1102.0,0.00010491,2]
[420263806,1775873826551,937.0,0.00010491,2]
[420263807,1775873891896,1000.0,0.00010491,2]
[420263808,1775873948399,950.0,0.00010491,2]
[420263809,1775874005964,155.0,0.00010491,2]
[420263814,1775874011103,902.0,0.00010491,2]
[420263815,1775874126230,857.0,0.00010491,2]
[420263816,1775874189030,814.0,0.00010491,2]
[420263817,1775874247590,774.0,0.00010491,2]
[420263818,1775874308587,503.0,0.00010491,2]
[420263819,1775874308695,156.0,0.00010491,2]
[420263820,1775874319230,169.2,0.00010114,2]
[420263821,1775874372955,710.0,0.00010491,2]
[420263822,1775874431874,674.0,0.00010491,2]
[420263823,1775874489239,641.0,0.00010491,2]
[420263824,1775874546768,609.0,0.00010491,2]
[420263825,1775874614308,578.0,0.00010491,2]
[420263826,1775874614353,155.0,0.00010491,2]
[420263828,1775874631757,-696.09491183,0.00010871,2]
[420263829,1775874631888,-530.93601236,0.00010871,2]
[420263830,1775874631971,-121.95907581,0.00010871,2]
[420263831,1775874631980,-149.94679313,0.00011088,2]
[420263832,1775874632057,-100.05320687,0.00011088,2]
[420263833,1775874632066,-250.0,0.00011459,2]
[420263834,1775874632077,-161.66571798,0.00011859,2]
[420263835,1775874632097,-60.06510702,0.00011859,2]
[420263836,1775874632106,-250.0,0.00011959,2]
[420263837,1775874632116,-578.0,0.00012389,3]
[420263838,1775874632130,-500.0,0.00012655,2]
[420263839,1775874632143,-695.35,0.00012666,2]
[420263840,1775874632152,-164.7,0.00012694,2]
[420263841,1775874632166,-1600.0,0.00012773,2]
[420263842,1775874632178,-578.20924308,0.00012795,2]
[420263844,1775874632190,-1200.0,0.0001284,2]
[420263845,1775874632199,-735.2,0.00012841,2]
[420263846,1775874632219,-1500.0,0.00012864,2]
[420263847,1775874632228,-158.92,0.00012929,2]
[420263848,1775874632238,-507.0,0.000131,2]
[420263849,1775874632251,-155.0,0.00013266,3]
[420263850,1775874632265,-1000.0,0.00013332,2]
[420263851,1775874632275,-419.79309081,0.00013412,2]
[420263852,1775874632288,-1037.18408814,0.00013425,2]
[420263853,1775874632300,-1133.96069915,0.00013425,2]
[420263854,1775874632309,-1008.66375828,0.00013425,2]
[420263855,1775874632319,-400.0,0.00013482,2]
[420263856,1775874632332,-164.7,0.00013488,2]
[420263857,1775874632342,-1000.0,0.00013513,2]
[420263858,1775874632351,-1852.42,0.00013557,2]
[420263859,1775874632360,-1000.0,0.00013566,2]
[420263860,1775874632369,-1000.0,0.00013597,2]
[420263861,1775874632380,-150.0,0.00013597,2]
[420263862,1775874632390,-802.8419,0.00013599,2]
[420263863,1775874632399,-150.0,0.000136,2]
[420263864,1775874632408,-2000.0,0.000136,2]
[420263865,1775874632418,-150.0,0.00013624,2]
[420263866,1775874632427,-151.50404909,0.00013645,2]
[420263867,1775874632438,-1000.0,0.00013649,2]
[420263868,1775874632447,-162.77797567,0.00013674,2]
[420263869,1775874632456,-151.0,0.00013683,2]
[420263870,1775874632468,-1235.18214925,0.00013683,2]
[420263871,1775874632477,-589.62101408,0.00013683,2]
[420263872,1775874632487,-151.0,0.00013683,2]
[420263873,1775874632497,-151.0,0.00013683,2]
[420263874,1775874632508,-151.0,0.00013683,2]
[420263875,1775874632519,-151.0,0.00013683,2]
[420263876,1775874632528,-151.0,0.00013683,2]
[420263877,1775874632538,-151.0,0.00013683,2]
[420263878,1775874632555,-151.0,0.00013683,2]
[420263879,1775874632564,-151.0,0.00013683,2]
[420263880,1775874632577,-151.0,0.00013683,2]
[420263881,1775874632587,-151.0,0.00013683,2]
[420263882,1775874632605,-151.0,0.00013683,2]
[420263883,1775874632618,-151.0,0.00013683,2]
[420263884,1775874632630,-151.0,0.00013683,2]
[420263885,1775874632649,-151.0,0.00013683,2]
[420263886,1775874632660,-150.0,0.00013699,2]
[420263887,1775874632679,-150.0,0.00013699,2]
[420263888,1775874632693,-150.0,0.00013699,2]
[420263889,1775874632720,-166.66,0.00013699,2]
[420263890,1775874632732,-242.35,0.00013699,2]
[420263891,1775874632765,-226.11,0.00013699,2]
[420263892,1775874632778,-188.43,0.00013699,2]
[420263893,1775874632822,-157.02,0.00013699,2]
[420263894,1775874632868,-785.14,0.00013699,2]
[420263895,1775874632904,-170.78196815,0.00013699,2]
[420263896,1775874632971,-150.99,0.00013699,2]
[420263897,1775874633037,-4363.28,0.00013699,2]
[420263898,1775874633058,-150.99,0.00013699,2]
[420263899,1775874633081,-500.0,0.00013699,2]
[420263900,1775874633110,-151.0,0.00013699,2]
[420263901,1775874633132,-27991.53097431,0.00013699,2]
[420263902,1775874637961,-546.8159329,0.00013699,2]
[420263903,1775874637974,-1746.56751119,0.00013699,2]
[420263904,1775874638059,-258.6,0.00013699,2]
[420263905,1775874638070,-383.736,0.00013699,2]
[420263912,1775874640574,-2222.8908583,0.00013699,2]
[420263914,1775874640601,-362.3511928,0.00013699,2]
[420263915,1775874640612,-164.95,0.00013699,2]
[420263916,1775874640624,-1542.506,0.00013699,2]
[420263917,1775874640648,-236.17858286,0.00013699,2]
[420263918,1775874640657,-500.0,0.00013715,6]
[420263919,1775874640669,-1269.291,0.00013755,2]
[420263920,1775874640687,-150.0,0.00013755,2]
[420263921,1775874640697,-926.0,0.00013755,2]
[420263922,1775874640705,-1218.0,0.00013755,2]
[420263923,1775874640714,-1347.0,0.00013755,2]
[420263924,1775874640731,-1047.0,0.00013755,2]
[420263925,1775874640742,-565.9,0.00013794,2]
[420263926,1775874640752,-166.66,0.00013836,2]
[420263927,1775874640763,-282.63456617,0.00013858,2]
[420263928,1775874640778,-2313.27733665,0.00013921,2]
[420263929,1775874640792,-840.59974266,0.00013921,2]
[420263930,1775874641124,-999.08322069,0.00013921,2]
[420263931,1775874641144,-13299.2643,0.00013921,2]
[420263932,1775874641153,-150.0,0.00013973,2]
[420263933,1775874641164,-150.0,0.00013973,2]
[420263934,1775874641186,-150.0,0.00013973,2]
[420263935,1775874641195,-166.66,0.00013973,2]
[420263936,1775874641206,-242.3154,0.00014021,2]
[420263937,1775874641220,-2500.0,0.00014021,2]
[420263938,1775874641237,-9356.03966225,0.00014024,2]
[420263943,1775874643113,-5586.00646411,0.00014024,2]
[420263944,1775874643124,-198.63313619,0.00014072,2]
[420263945,1775874643135,-166.66,0.0001411,2]
[420263946,1775874643147,-1195.72221343,0.00014111,2]
[420263950,1775874643164,-2771.59948925,0.00014111,2]
[420263952,1775874643175,-615.21547425,0.00014111,2]
[420263955,1775874643282,-164.95,0.00013699,2]
[420263956,1775874643292,-2472.85282307,0.00014111,2]
[420263957,1775874643301,-2791.04860246,0.00014111,2]
[420263958,1775874643382,-4264.34139754,0.00014111,2]
[420263959,1775874643392,-298.21692005,0.00014111,2]
[420263960,1775874643408,-166.66,0.00014115,2]
[420263961,1775874643417,-207.27709824,0.0001412,2]
[420263962,1775874643426,-177.49919234,0.0001412,2]
[420263963,1775874643436,-500.0,0.0001412,2]
[420263964,1775874643452,-500.0,0.0001412,2]
[420263965,1775874643462,-500.0,0.0001412,2]
[420263966,1775874643472,-624.81554529,0.0001412,2]
[420263968,1775874643482,-500.0,0.0001412,2]
[420263971,1775874643498,-500.0,0.0001412,2]
[420263973,1775874643508,-500.0,0.0001412,2]
[420263975,1775874643518,-500.0,0.0001412,2]
[420263977,1775874643528,-500.0,0.0001412,2]
[420263979,1775874643547,-500.0,0.0001412,2]
[420263981,1775874643557,-500.0,0.0001412,2]
[420263983,1775874643570,-500.0,0.0001412,2]
[420263985,1775874643587,-500.0,0.0001412,2]
[420263987,1775874643597,-500.0,0.0001412,2]
[420263989,1775874643611,-500.0,0.0001412,2]
[420263991,1775874643625,-500.0,0.0001412,2]
[420263993,1775874643635,-500.0,0.0001412,2]
[420263995,1775874643645,-285.31615266,0.0001412,2]
[420263998,1775874643677,-214.68384734,0.0001412,2]
[420264001,1775874643688,-288.79212544,0.0001412,2]
[420264013,1775874643811,-505.0,0.000131,2]
[420264015,1775874643821,-41.0,0.0001412,2]
[420264017,1775874643835,-170.20787456,0.0001412,2]
[420264019,1775874643845,-245.71542544,0.0001412,2]
[420264145,1775874648069,-700.0,0.000137,5]
[420264147,1775874648080,-8.77,0.000138,5]
[420264183,1775874655674,1352.81,0.00010491,2]
[420264184,1775874655699,10000.01,0.00010491,2]
[420264185,1775874655742,6640.32804343,0.00010491,2]
[420264188,1775874846626,568.0,0.00010492,2]
[420264189,1775875287395,380.90915833,0.00010492,2]
[420264190,1775875365429,668.37,6.022e-05,2]
[420264191,1775875365595,668.37,6.339e-05,2]
[420264192,1775875365655,668.37,6.656e-05,2]
[420264193,1775875365761,668.37,6.973e-05,2]
[420264194,1775875366310,668.37,7.29e-05,2]
[420264195,1775875366503,668.37,7.607e-05,2]
[420264196,1775875366725,668.37,7.924e-05,2]
[420264197,1775875366964,668.37,8.241e-05,2]
[420264198,1775875367162,668.37,8.558e-05,2]
[420264199,1775875367362,668.37,8.875e-05,2]
[420264200,1775875367590,668.37,9.192e-05,2]
[420264201,1775875367798,668.37,9.509e-05,2]
[420264202,1775875368001,668.37,9.826e-05,2]
[420264203,1775875368216,362.29084167,0.00010142,2]
[420264204,1775875368243,306.07915833,0.00010142,2]
[420264205,1775875368437,668.37,0.00010459,2]
[420264206,1775875391264,3021.097137,7.945e-05,2]
[420264217,1775875831984,-445.5644946,0.00010492,30]
[420264220,1775875832005,-283.5463771,0.00010492,30]
[420264223,1775875832030,-157.0,0.00010492,3]
[420264226,1775875832047,-616.0,0.00010492,3]
[420264228,1775875832085,-29.6680983,0.00010498,2]
[420264230,1775875832104,-220.3319017,0.00010498,2]
[420264232,1775875832128,-302.0,0.00010498,2]
[420264234,1775875832145,-167.22217849,0.00010504,2]
[420264236,1775875832157,-30.07512123,0.00010663,2]
[420264238,1775875832182,-219.92487877,0.00010663,2]
[420264240,1775875832211,-230.95422722,0.00010772,2]
[420264241,1775875832251,-221.47237278,0.00010772,2]
[420264242,1775875832278,-375.1883772,0.00010772,30]
[420264243,1775875832294,-353.9224945,0.00010772,30]
[420264244,1775875832319,-291.64434867,0.00010772,30]
[420264245,1775875832330,-128.08451206,0.00010776,2]
[420264246,1775875832356,-540.28548794,0.00010776,2]
[420264247,1775875832372,-360.94869449,0.00011093,2]
[420264248,1775875832387,-307.42130551,0.00011093,2]
[420264249,1775875832399,-500.0,0.00011191,2]
[420264250,1775875832420,-300.0,0.00011221,2]
[420264251,1775875832429,-281.6660347,0.00011221,2]
[420264252,1775875832443,-18.3339653,0.00011221,2]
[420264253,1775875832470,-877.0760347,0.00011221,2]
[420264254,1775875832488,-322.9239653,0.00011221,2]
[420264255,1775875832497,-2389.66347646,0.00011222,2]
[420264258,1775875832513,-687.27501968,0.00011222,2]
[420264261,1775875832546,-1077.05150386,0.00011222,2]
[420264263,1775875832565,-668.37,0.0001141,2]
[420264265,1775875832575,-454.92706503,0.00011517,2]
[420264267,1775875832596,-437.46652301,0.00011541,30]
[420264269,1775875832606,-250.0,0.00011541,2]
[420264271,1775875832617,-1340.0,0.00011551,2]
[420264273,1775875832639,-1522.0,0.00011574,2]
[420264275,1775875832661,-668.37,0.00011727,2]
[420264276,1775875832685,-668.37,0.00012044,2]
[420264277,1775875832698,-300.0,0.0001208,2]
[420264278,1775875832706,-1194.12,0.00012082,2]
[420264279,1775875832716,-344.72,0.00012107,2]
[420264280,1775875832748,-316.71,0.00012136,2]
[420264281,1775875832757,-5000.94,0.00012154,2]
[420264282,1775875832770,-150.0,0.00012173,2]
[420264283,1775875832801,-169.96,0.00012269,2]
[420264284,1775875832816,-150.0,0.000123,2]
[420264285,1775875832828,-420.0,0.00012328,2]
[420264286,1775875832841,-420.0,0.00012328,2]
[420264287,1775875832867,-1680.0,0.00012343,2]
[420264288,1775875832879,-150.0,0.0001239,2]
[420264289,1775875832888,-200.93190772,0.0001239,2]
[420264290,1775875832915,-729.1108717,0.0001239,30]
[420264291,1775875832925,-616.0,0.0001239,3]
[420264292,1775875832946,-150.0,0.00012478,2]
[420264293,1775875832959,-11374.97212657,0.00012479,2]
[420264294,1775875832969,-500.0,0.00012479,2]
[420264295,1775875832998,-181.08010149,0.00012479,2]
[420264296,1775875833007,-174.61919141,0.00012479,2]
[420264298,1775875833023,-272.35642471,0.00012479,2]
[420264300,1775875833040,-1314.81,0.00012499,2]
[420264302,1775875833049,-729.1108717,0.00012499,30]
[420264304,1775875833059,-500.0,0.00012534,2]
[420264306,1775875833070,-18130.46794407,0.00012555,2]
[420264308,1775875833088,-923.67180691,0.00012615,7]
[420264310,1775875833098,-847.14910588,0.00012645,2]
[420264312,1775875833111,-500.0,0.00012654,2]
[420264314,1775875833131,-374.46890949,0.00012654,2]
[420264316,1775875833140,-500.0,0.00012654,2]
[420264318,1775875833150,-199.85340214,0.00012654,2]
[420264320,1775875833162,-500.0,0.00012654,2]
[420264322,1775875833175,-167.15788666,0.00012654,2]
[420264324,1775875833186,-500.0,0.00012654,2]
[420264326,1775875833196,-500.0,0.00012654,2]
[420264328,1775875833209,-500.0,0.00012654,2]
[420264330,1775875833224,-500.0,0.00012654,2]
[420264332,1775875833236,-500.0,0.00012654,2]
[420264334,1775875833256,-310.74252009,0.00012654,2]
[420264336,1775875833265,-500.0,0.00012654,2]
[420264338,1775875833275,-500.0,0.00012654,2]
[420264340,1775875833289,-500.0,0.00012654,2]
[420264342,1775875833315,-500.0,0.00012654,2]
[420264344,1775875833325,-500.0,0.00012654,2]
[420264346,1775875833334,-500.0,0.00012654,2]
[420264348,1775875833353,-500.0,0.00012654,2]
[420264350,1775875833362,-500.0,0.00012654,2]
[420264352,1775875833374,-500.0,0.00012654,2]
[420264353,1775875833387,-500.0,0.00012654,2]
[420264355,1775875833421,-500.0,0.00012654,2]
[420264357,1775875833446,-500.0,0.00012654,2]
[420264360,1775875833458,-500.0,0.00012654,2]
[420264362,1775875833490,-500.0,0.00012654,2]
[420264364,1775875833501,-500.0,0.00012654,2]
[420264366,1775875833526,-500.0,0.00012654,2]
[420264368,1775875833538,-500.0,0.00012654,2]
[420264370,1775875833549,-500.0,0.00012654,2]
[420264372,1775875833566,-500.0,0.00012654,2]
[420264373,1775875833590,-500.0,0.00012654,2]
[420264374,1775875833600,-500.0,0.00012654,2]
[420264375,1775875833618,-158.48090242,0.00012654,2]
[420264376,1775875833630,-500.0,0.00012654,2]
[420264377,1775875833639,-500.0,0.00012654,2]
[420264379,1775875833657,-500.0,0.00012654,2]
[420264380,1775875833673,-500.0,0.00012654,2]
[420264381,1775875833683,-500.0,0.00012654,2]
[420264382,1775875833701,-500.0,0.00012654,2]
[420264383,1775875833735,-995.94295783,0.00012654,2]
[420264384,1775875833759,-995.94295783,0.00012654,2]
[420264385,1775875833786,-995.94295783,0.00012654,2]
[420264386,1775875833795,-995.94295783,0.00012654,2]
[420264387,1775875833807,-995.94295783,0.00012654,2]
[420264388,1775875833830,-995.94295783,0.00012654,2]
[420264389,1775875833839,-995.94295783,0.00012654,2]
[420264390,1775875833848,-995.94295783,0.00012654,2]
[420264391,1775875833872,-995.94295783,0.00012654,2]
[420264392,1775875833881,-995.94295783,0.00012654,2]
[420264393,1775875833891,-995.94295783,0.00012654,2]
[420264394,1775875833908,-995.94295783,0.00012654,2]
[420264395,1775875833921,-995.94295783,0.00012654,2]
[420264396,1775875833932,-995.94295783,0.00012654,2]
[420264397,1775875833949,-995.94295783,0.00012654,2]
[420264398,1775875833962,-995.94295783,0.00012654,2]
[420264399,1775875833976,-995.94295783,0.00012654,2]
[420264400,1775875833996,-995.94295783,0.00012654,2]
[420264401,1775875834011,-995.94295783,0.00012654,2]
[420264402,1775875834022,-995.94295783,0.00012654,2]
[420264403,1775875834038,-995.94295783,0.00012654,2]
[420264404,1775875834053,-995.94295783,0.00012654,2]
[420264405,1775875834065,-995.94295783,0.00012654,2]
[420264406,1775875834077,-995.94295783,0.00012654,2]
[420264407,1775875834087,-995.94295783,0.00012654,2]
[420264408,1775875834111,-995.94295783,0.00012654,2]
[420264409,1775875834123,-995.94295783,0.00012654,2]
[420264410,1775875834132,-995.94295783,0.00012654,2]
[420264411,1775875834147,-995.94295783,0.00012654,2]
[420264412,1775875834156,-500.0,0.00012654,2]
[420264413,1775875834171,-417.51976406,0.00012654,2]
[420264414,1775875834182,-975.43824987,0.00012654,2]
[420264415,1775875834195,-975.43824987,0.00012654,2]
[420264416,1775875834204,-975.43824987,0.00012654,2]
[420264417,1775875834214,-975.43824987,0.00012654,2]
[420264418,1775875834233,-975.43824987,0.00012654,2]
[420264419,1775875834242,-975.43824987,0.00012654,2]
[420264420,1775875834256,-975.43824987,0.00012654,2]
[420264421,1775875834266,-975.43824987,0.00012654,2]
[420264422,1775875834277,-975.43824987,0.00012654,2]
[420264423,1775875834294,-975.43824987,0.00012654,2]
[420264424,1775875834303,-975.43824987,0.00012654,2]
[420264425,1775875834316,-975.43824987,0.00012654,2]
[420264426,1775875834327,-975.43824987,0.00012654,2]
[420264427,1775875834337,-975.43824987,0.00012654,2]
[420264428,1775875834346,-975.43824987,0.00012654,2]
[420264429,1775875834357,-975.43824987,0.00012654,2]
[420264430,1775875834366,-975.43824987,0.00012654,2]
[420264431,1775875834381,-975.43824987,0.00012654,2]
[420264432,1775875834391,-975.43824987,0.00012654,2]
[420264433,1775875834408,-975.43824987,0.00012654,2]
[420264434,1775875834418,-975.43824987,0.00012654,2]
[420264435,1775875834430,-975.43824987,0.00012654,2]
[420264436,1775875834441,-975.43824987,0.00012654,2]
[420264437,1775875834457,-975.43824987,0.00012654,2]
[420264438,1775875834471,-975.43824987,0.00012654,2]
[420264439,1775875834481,-975.43824987,0.00012654,2]
[420264440,1775875834497,-975.43824987,0.00012654,2]
[420264441,1775875834515,-975.43824987,0.00012654,2]
[420264442,1775875834549,-975.43824987,0.00012654,2]
[420264443,1775875834560,-975.43824987,0.00012654,2]
[420264444,1775875834586,-975.43824987,0.00012654,2]
[420264445,1775875834607,-975.43824987,0.00012654,2]
[420264446,1775875834624,-975.43824987,0.00012654,2]
[420264447,1775875834648,-304.65357867,0.00012654,2]
[420264448,1775875834670,-12874.20373197,0.00012655,2]
[420264449,1775875834703,-385.37598275,0.00012655,2]
[420264484,1775875839635,-562.97489954,0.00011453,2]
[420264485,1775875839650,-273.94165664,0.00012555,2]
[420264486,1775875839661,-197731.1687811,0.00012655,2]
[420264487,1775875840735,-6061.57519651,0.00012655,2]
[420264488,1775875840750,-6087.10756133,0.00012655,2]
[420264489,1775875841056,-1029.67326749,0.00012655,2]
[420264495,1775875843225,-826.59706881,0.00012655,2]
[420264496,1775875843306,-6393.87942294,0.00012655,2]
[420264497,1775875843399,-553.19536235,0.00012655,2]
[420264498,1775875843438,-799.95364574,0.00012655,2]
[420264502,1775875845955,-917.93588243,0.00012655,2]
[420264503,1775875846152,-360.80808539,0.00012655,2]
[420264504,1775875846175,-334.17955931,0.00012655,2]
[420264507,1775875846895,-315.52696158,0.00012655,2]
[420264509,1775876181976,201.0,9.989e-05,2]
[420264510,1775876220987,255.0,0.000103,5]
[420264511,1775876313057,577.28550697,8e-05,2]
[420264512,1775877011491,500.0,0.00010675,2]
[420264517,1775877032517,-300.0,0.00010699,2]
[420264518,1775877032526,-283.0,0.00010699,2]
[420264519,1775877032544,-66.30075664,0.00010699,2]
[420264529,1775877032956,-1133.69924336,0.00010699,2]
[420264531,1775877032966,-250.0,0.000107,2]
[420264533,1775877032977,-9974.36840865,0.000107,2]
[420264535,1775877032994,-229.17861995,0.00011159,2]
[420264537,1775877033003,-18883.79807255,0.00011372,2]
[420264539,1775877033015,-304.26214114,0.00011372,2]
[420264542,1775877033026,-150.0,0.000114,2]
[420264544,1775877033039,-166.68,0.00011439,2]
[420264546,1775877033048,-618.08320094,0.00011462,2]
[420264548,1775877033069,-150.0,0.0001147,2]
[420264550,1775877033078,-500.0,0.00011471,2]
[420264552,1775877033091,-300.0,0.00011471,2]
[420264554,1775877033106,-365.59718386,0.00011471,2]
[420264555,1775877033118,-158.52828037,0.00011471,2]
[420264557,1775877033131,-500.0,0.00011471,2]
[420264559,1775877033142,-500.0,0.00011471,2]
[420264561,1775877033169,-500.0,0.00011471,2]
[420264563,1775877033201,-500.0,0.00011471,2]
[420264565,1775877033210,-500.0,0.00011471,2]
[420264567,1775877033252,-500.0,0.00011471,2]
[420264569,1775877033263,-500.0,0.00011471,2]
[420264571,1775877033276,-500.0,0.00011471,2]
[420264572,1775877033291,-500.0,0.00011471,2]
[420264573,1775877033302,-500.0,0.00011471,2]
[420264574,1775877033313,-500.0,0.00011471,2]
[420264575,1775877033328,-500.0,0.00011471,2]
[420264576,1775877033338,-500.0,0.00011471,2]
[420264577,1775877033350,-500.0,0.00011471,2]
[420264578,1775877033360,-500.0,0.00011471,2]
[420264579,1775877033371,-578.66844918,0.00011471,2]
[420264580,1775877033388,-500.0,0.00011471,2]
[420264581,1775877033397,-500.0,0.00011471,2]
[420264582,1775877033406,-500.0,0.00011471,2]
[420264583,1775877033417,-500.0,0.00011471,2]
[420264584,1775877033434,-500.0,0.00011471,2]
[420264585,1775877033443,-500.0,0.00011471,2]
[420264586,1775877033452,-500.0,0.00011471,2]
[420264587,1775877033462,-500.0,0.00011471,2]
[420264588,1775877033479,-500.0,0.00011471,2]
[420264589,1775877033489,-500.0,0.00011471,2]
[420264590,1775877033505,-500.0,0.00011471,2]
[420264591,1775877033520,-500.0,0.00011471,2]
[420264592,1775877033530,-500.0,0.00011471,2]
[420264593,1775877033556,-500.0,0.00011471,2]
[420264594,1775877033575,-500.0,0.00011471,2]
[420264595,1775877033588,-414.12851623,0.00011471,2]
[420264596,1775877033603,-500.0,0.00011471,2]
[420264597,1775877033616,-500.0,0.00011471,2]
[420264598,1775877033631,-500.0,0.00011471,2]
[420264599,1775877033640,-500.0,0.00011471,2]
[420264600,1775877033650,-500.0,0.00011471,2]
[420264601,1775877033666,-500.0,0.00011471,2]
[420264602,1775877033678,-500.0,0.00011471,2]
[420264603,1775877033688,-500.0,0.00011471,2]
[420264604,1775877033706,-261.82267504,0.00011471,2]
[420264605,1775877033716,-500.0,0.00011471,2]
[420264606,1775877033726,-500.0,0.00011471,2]
[420264607,1775877033743,-250.0,0.00011471,2]